fUST/lending_fUST_20241205
["ID","MTS","AMOUNT","RATE_DAILY","PERIOD"]
[344304085,1733333448640,-721.83,0.00026027,7]
[344304087,1733333448650,-573.45,0.00026027,7]
[344304088,1733333448660,-522.96,0.00026027,7]
[344304090,1733333448670,-645.97951378,0.00026027,7]
[344304092,1733333448680,-500.0,0.00026027,7]
[344304094,1733333448690,-500.0,0.00026027,7]
[344304096,1733333448700,-500.0,0.00026027,7]
[344304098,1733333448711,-500.0,0.00026027,7]
[344304100,1733333448720,-500.0,0.00026027,7]
[344304102,1733333448730,-500.0,0.00026027,7]
[344304104,1733333448742,-500.0,0.00026027,7]
[344304105,1733333448752,-500.0,0.00026027,7]
[344304107,1733333448762,-709.08,0.00026027,7]
[344304109,1733333448774,-926.59,0.00026027,7]
[344304111,1733333448788,-500.0,0.00026027,7]
[344304113,1733333448799,-500.0,0.00026027,7]
[344304115,1733333448808,-500.0,0.00026027,7]
[344304117,1733333448817,-504.13,0.00026027,7]
[344304119,1733333448827,-500.0,0.00026027,7]
[344304120,1733333448837,-723.18,0.00026027,7]
[344304122,1733333448847,-500.0,0.00026027,7]
[344304124,1733333448858,-500.0,0.00026027,7]
[344304126,1733333448871,-483.64177039,0.00026027,7]
[344304128,1733333448881,-500.0,0.00026027,7]
[344304130,1733333448891,-500.0,0.00026027,7]
[344304132,1733333448900,-500.0,0.00026027,7]
[344304134,1733333448912,-626.31,0.00026027,7]
[344304136,1733333448923,-500.0,0.00026027,7]
[344304138,1733333448933,-1467.58,0.00026027,7]
[344304140,1733333448943,-662.89,0.00026027,7]
[344304142,1733333448952,-500.0,0.00026027,7]
[344304144,1733333448962,-500.0,0.00026027,7]
[344304146,1733333448973,-500.0,0.00026027,7]
[344304148,1733333448982,-500.0,0.00026027,7]
[344304149,1733333448996,-500.0,0.00026027,7]
[344304151,1733333449007,-500.0,0.00026027,7]
[344304153,1733333449018,-677.12,0.00026027,7]
[344304155,1733333449028,-524.85,0.00026027,7]
[344304157,1733333449038,-500.0,0.00026027,7]
[344304159,1733333449048,-629.48,0.00026027,7]
[344304160,1733333449058,-500.0,0.00026027,7]
[344304162,1733333449069,-500.0,0.00026027,7]
[344304164,1733333449079,-500.0,0.00026027,7]
[344304166,1733333449088,-500.0,0.00026027,7]
[344304168,1733333449098,-1116.42,0.00026027,7]
[344304170,1733333449108,-500.0,0.00026027,7]
[344304172,1733333449117,-500.0,0.00026027,7]
[344304174,1733333449127,-563.92,0.00026027,7]
[344304176,1733333449137,-522.96,0.00026027,7]
[344304178,1733333449147,-500.0,0.00026027,7]
[344304180,1733333449157,-515.01,0.00026027,7]
[344304182,1733333449167,-500.0,0.00026027,7]
[344304183,1733333449177,-504.71,0.00026027,7]
[344304185,1733333449186,-7087.95,0.00026027,7]
[344304187,1733333449197,-500.0,0.00026027,7]
[344304189,1733333449207,-2035.02,0.00026027,7]
[344304191,1733333449216,-3116.65,0.00026027,7]
[344304193,1733333449227,-500.0,0.00026027,7]
[344304195,1733333449240,-564.96,0.00026027,7]
[344304197,1733333449250,-500.0,0.00026027,7]
[344304199,1733333449260,-500.0,0.00026027,7]
[344304201,1733333449270,-500.0,0.00026027,7]
[344304203,1733333449280,-1293.31,0.00026027,7]
[344304204,1733333449290,-500.0,0.00026027,7]
[344304206,1733333449301,-1459.39,0.00026027,7]
[344304208,1733333449311,-657.86,0.00026027,7]
[344304210,1733333449321,-599.05,0.00026027,7]
[344304212,1733333449331,-500.0,0.00026027,7]
[344304214,1733333449342,-689.6,0.00026027,7]
[344304216,1733333449352,-903.51,0.00026027,7]
[344304218,1733333449362,-500.0,0.00026027,7]
[344304220,1733333449372,-1056.39,0.00026027,7]
[344304222,1733333449382,-557.51,0.00026027,7]
[344304224,1733333449392,-500.0,0.00026027,7]
[344304226,1733333449402,-2094.84,0.00026027,7]
[344304227,1733333449412,-679.03,0.00026027,7]
[344304229,1733333449422,-500.0,0.00026027,7]
[344304231,1733333449432,-500.0,0.00026027,7]
[344304233,1733333449442,-1824.02,0.00026027,7]
[344304235,1733333449452,-655.64,0.00026027,7]
[344304237,1733333449462,-500.0,0.00026027,7]
[344304239,1733333449472,-500.0,0.00026027,7]
[344304241,1733333449481,-606.39,0.00026027,7]
[344304243,1733333449494,-251.11185992,0.00026027,7]
[344304245,1733333449503,-535.37,0.00026027,7]
[344304246,1733333449513,-500.0,0.00026027,7]
[344304249,1733333449528,-703.44,0.00026027,7]
[344304250,1733333449537,-500.0,0.00026027,7]
[344304252,1733333449548,-571.15,0.00026027,7]
[344304254,1733333449558,-770.81,0.00026027,7]
[344304256,1733333449569,-771.52,0.00026027,7]
[344304258,1733333449580,-500.0,0.00026027,7]
[344304260,1733333449589,-500.0,0.00026027,7]
[344304262,1733333449604,-500.0,0.00026027,7]
[344304264,1733333449615,-244.35556004,0.00026027,7]
[344304266,1733333449624,-500.0,0.00026027,7]
[344304268,1733333449635,-500.0,0.00026027,7]
[344304270,1733333449645,-729.72,0.00026027,7]
[344304272,1733333449654,-7776.5,0.00026027,7]
[344304273,1733333449663,-500.0,0.00026043,2]
[344304275,1733333449676,-160.0,0.00026211,3]
[344304277,1733333449685,-1727.23159868,0.00026247,2]
[344304279,1733333449695,-500.0,0.00026301,7]
[344304281,1733333449704,-500.0,0.00026301,7]
[344304283,1733333449713,-380.95546365,0.00026301,7]
[344304285,1733333449722,-500.0,0.00026301,7]
[344304287,1733333449732,-721.83,0.00026301,7]
[344304289,1733333449743,-573.45,0.00026301,7]
[344304291,1733333449753,-522.96,0.00026301,7]
[344304293,1733333449763,-500.0,0.00026301,7]
[344304295,1733333449772,-500.0,0.00026301,7]
[344304297,1733333449781,-500.0,0.00026301,7]
[344304298,1733333449791,-500.0,0.00026301,7]
[344304300,1733333449800,-500.0,0.00026301,7]
[344304302,1733333449809,-500.0,0.00026301,7]
[344304304,1733333449819,-500.0,0.00026301,7]
[344304306,1733333449829,-500.0,0.00026301,7]
[344304308,1733333449839,-709.08,0.00026301,7]
[344304310,1733333449849,-926.59,0.00026301,7]
[344304312,1733333449859,-500.0,0.00026301,7]
[344304314,1733333449868,-500.0,0.00026301,7]
[344304315,1733333449877,-500.0,0.00026301,7]
[344304317,1733333449887,-504.13,0.00026301,7]
[344304319,1733333449896,-500.0,0.00026301,7]
[344304321,1733333449906,-723.18,0.00026301,7]
[344304323,1733333449915,-500.0,0.00026301,7]
[344304325,1733333449924,-309.71505697,0.00026301,7]
[344304327,1733333449934,-500.0,0.00026301,7]
[344304329,1733333449943,-500.0,0.00026301,7]
[344304331,1733333449952,-500.0,0.00026301,7]
[344304333,1733333449961,-626.31,0.00026301,7]
[344304335,1733333449971,-500.0,0.00026301,7]
[344304337,1733333449980,-1467.58,0.00026301,7]
[344304339,1733333449993,-662.89,0.00026301,7]
[344304341,1733333450004,-500.0,0.00026301,7]
[344304343,1733333450015,-500.0,0.00026301,7]
[344304345,1733333450024,-465.06,0.00026301,7]
[344304347,1733333450034,-500.0,0.00026301,7]
[344304349,1733333450043,-500.0,0.00026301,7]
[344304350,1733333450053,-500.0,0.00026301,7]
[344304352,1733333450062,-677.12,0.00026301,7]
[344304354,1733333450072,-524.85,0.00026301,7]
[344304356,1733333450081,-500.0,0.00026301,7]
[344304358,1733333450090,-629.48,0.00026301,7]
[344304360,1733333450099,-500.0,0.00026301,7]
[344304362,1733333450108,-500.0,0.00026301,7]
[344304364,1733333450118,-500.0,0.00026301,7]
[344304366,1733333450127,-1116.42,0.00026301,7]
[344304368,1733333450137,-500.0,0.00026301,7]
[344304370,1733333450146,-500.0,0.00026301,7]
[344304372,1733333450156,-563.92,0.00026301,7]
[344304373,1733333450165,-522.96,0.00026301,7]
[344304375,1733333450175,-500.0,0.00026301,7]
[344304377,1733333450184,-515.01,0.00026301,7]
[344304379,1733333450194,-500.0,0.00026301,7]
[344304381,1733333450204,-504.71,0.00026301,7]
[344304383,1733333450214,-7087.95,0.00026301,7]
[344304385,1733333450223,-500.0,0.00026301,7]
[344304387,1733333450233,-2035.02,0.00026301,7]
[344304389,1733333450248,-3116.65,0.00026301,7]
[344304391,1733333450258,-500.0,0.00026301,7]
[344304393,1733333450268,-564.96,0.00026301,7]
[344304395,1733333450277,-500.0,0.00026301,7]
[344304397,1733333450287,-500.0,0.00026301,7]
[344304399,1733333450296,-500.0,0.00026301,7]
[344304401,1733333450307,-1293.31,0.00026301,7]
[344304403,1733333450316,-358.16469911,0.00026301,7]
[344304405,1733333450326,-1459.39,0.00026301,7]
[344304407,1733333450337,-657.86,0.00026301,7]
[344304409,1733333450346,-599.05,0.00026301,7]
[344304410,1733333450357,-500.0,0.00026301,7]
[344304412,1733333450367,-689.6,0.00026301,7]
[344304414,1733333450376,-903.51,0.00026301,7]
[344304416,1733333450386,-500.0,0.00026301,7]
[344304417,1733333450395,-1056.39,0.00026301,7]
[344304418,1733333450405,-557.51,0.00026301,7]
[344304419,1733333450414,-500.0,0.00026301,7]
[344304420,1733333450423,-2094.84,0.00026301,7]
[344304421,1733333450433,-679.03,0.00026301,7]
[344304422,1733333450442,-500.0,0.00026301,7]
[344304423,1733333450451,-500.0,0.00026301,7]
[344304424,1733333450463,-1824.02,0.00026301,7]
[344304425,1733333450476,-655.64,0.00026301,7]
[344304426,1733333450490,-500.0,0.00026301,7]
[344304427,1733333450500,-500.0,0.00026301,7]
[344304428,1733333450510,-606.39,0.00026301,7]
[344304430,1733333450519,-535.37,0.00026301,7]
[344304432,1733333450529,-500.0,0.00026301,7]
[344304434,1733333450538,-703.44,0.00026301,7]
[344304436,1733333450548,-500.0,0.00026301,7]
[344304438,1733333450557,-571.15,0.00026301,7]
[344304440,1733333450566,-770.81,0.00026301,7]
[344304442,1733333450575,-771.52,0.00026301,7]
[344304444,1733333450585,-500.0,0.00026301,7]
[344304446,1733333450597,-500.0,0.00026301,7]
[344304448,1733333450609,-500.0,0.00026301,7]
[344304450,1733333450619,-500.0,0.00026301,7]
[344304452,1733333450629,-500.0,0.00026301,7]
[344304454,1733333450639,-729.72,0.00026301,7]
[344304456,1733333450649,-7776.5,0.00026301,7]
[344304458,1733333450658,-1474.41491793,0.00026395,2]
[344304460,1733333450667,-1500.0,0.00026522,2]
[344304462,1733333450678,-500.0,0.00026575,7]
[344304464,1733333450687,-500.0,0.00026575,7]
[344304466,1733333450697,-500.0,0.00026575,7]
[344304468,1733333450706,-721.83,0.00026575,7]
[344304470,1733333450716,-573.45,0.00026575,7]
[344304472,1733333450725,-522.96,0.00026575,7]
[344304474,1733333450737,-500.0,0.00026575,7]
[344304476,1733333450747,-500.0,0.00026575,7]
[344304478,1733333450757,-500.0,0.00026575,7]
[344304479,1733333450767,-500.0,0.00026575,7]
[344304481,1733333450776,-500.0,0.00026575,7]
[344304484,1733333450787,-500.0,0.00026575,7]
[344304486,1733333450796,-500.0,0.00026575,7]
[344304488,1733333450805,-500.0,0.00026575,7]
[344304490,1733333450815,-709.08,0.00026575,7]
[344304492,1733333450825,-926.59,0.00026575,7]
[344304494,1733333450834,-500.0,0.00026575,7]
[344304496,1733333450845,-500.0,0.00026575,7]
[344304498,1733333450854,-500.0,0.00026575,7]
[344304500,1733333450863,-504.13,0.00026575,7]
[344304502,1733333450873,-500.0,0.00026575,7]
[344304504,1733333450884,-723.18,0.00026575,7]
[344304506,1733333450893,-500.0,0.00026575,7]
[344304508,1733333450903,-500.0,0.00026575,7]
[344304510,1733333450913,-500.0,0.00026575,7]
[344304512,1733333450922,-483.37504519,0.00026575,7]
[344304514,1733333450932,-626.31,0.00026575,7]
[344304516,1733333450941,-500.0,0.00026575,7]
[344304517,1733333450950,-1467.58,0.00026575,7]
[344304519,1733333450960,-662.89,0.00026575,7]
[344304521,1733333450970,-500.0,0.00026575,7]
[344304523,1733333450979,-500.0,0.00026575,7]
[344304525,1733333450991,-500.0,0.00026575,7]
[344304528,1733333451002,-500.0,0.00026575,7]
[344304529,1733333451012,-500.0,0.00026575,7]
[344304531,1733333451021,-677.12,0.00026575,7]
[344304533,1733333451030,-524.85,0.00026575,7]
[344304535,1733333451040,-500.0,0.00026575,7]
[344304537,1733333451050,-629.48,0.00026575,7]
[344304540,1733333451061,-500.0,0.00026575,7]
[344304542,1733333451072,-500.0,0.00026575,7]
[344304544,1733333451082,-500.0,0.00026575,7]
[344304545,1733333451092,-1116.42,0.00026575,7]
[344304547,1733333451102,-500.0,0.00026575,7]
[344304549,1733333451112,-500.0,0.00026575,7]
[344304551,1733333451122,-563.92,0.00026575,7]
[344304553,1733333451133,-522.96,0.00026575,7]
[344304555,1733333451143,-500.0,0.00026575,7]
[344304557,1733333451154,-515.01,0.00026575,7]
[344304559,1733333451164,-500.0,0.00026575,7]
[344304561,1733333451174,-504.71,0.00026575,7]
[344304563,1733333451184,-7087.95,0.00026575,7]
[344304565,1733333451194,-500.0,0.00026575,7]
[344304567,1733333451204,-2035.02,0.00026575,7]
[344304569,1733333451214,-3116.65,0.00026575,7]
[344304571,1733333451224,-500.0,0.00026575,7]
[344304573,1733333451234,-564.96,0.00026575,7]
[344304575,1733333451245,-500.0,0.00026575,7]
[344304578,1733333451255,-500.0,0.00026575,7]
[344304580,1733333451265,-500.0,0.00026575,7]
[344304592,1733333451400,-1293.31,0.00026575,7]
[344304594,1733333451411,-1459.39,0.00026575,7]
[344304596,1733333451422,-657.86,0.00026575,7]
[344304598,1733333451432,-599.05,0.00026575,7]
[344304600,1733333451442,-500.0,0.00026575,7]
[344304602,1733333451452,-689.6,0.00026575,7]
[344304604,1733333451463,-903.51,0.00026575,7]
[344304606,1733333451474,-500.0,0.00026575,7]
[344304608,1733333451485,-1056.39,0.00026575,7]
[344304610,1733333451498,-557.51,0.00026575,7]
[344304612,1733333451508,-500.0,0.00026575,7]
[344304614,1733333451518,-2094.84,0.00026575,7]
[344304616,1733333451528,-679.03,0.00026575,7]
[344304618,1733333451539,-500.0,0.00026575,7]
[344304620,1733333451549,-500.0,0.00026575,7]
[344304622,1733333451560,-1824.02,0.00026575,7]
[344304624,1733333451571,-655.64,0.00026575,7]
[344304626,1733333451582,-500.0,0.00026575,7]
[344304628,1733333451595,-500.0,0.00026575,7]
[344304630,1733333451605,-606.39,0.00026575,7]
[344304632,1733333451616,-535.37,0.00026575,7]
[344304634,1733333451626,-500.0,0.00026575,7]
[344304636,1733333451638,-703.44,0.00026575,7]
[344304638,1733333451648,-500.0,0.00026575,7]
[344304640,1733333451658,-571.15,0.00026575,7]
[344304642,1733333451668,-770.81,0.00026575,7]
[344304644,1733333451680,-771.52,0.00026575,7]
[344304646,1733333451689,-500.0,0.00026575,7]
[344304647,1733333451699,-500.0,0.00026575,7]
[344304649,1733333451708,-500.0,0.00026575,7]
[344304651,1733333451718,-500.0,0.00026575,7]
[344304653,1733333451728,-500.0,0.00026575,7]
[344304655,1733333451741,-729.72,0.00026575,7]
[344304657,1733333451751,-7776.5,0.00026575,7]
[344304659,1733333451761,-1000.0,0.00026591,2]
[344304661,1733333451770,-150.0,0.00026674,2]
[344304663,1733333451780,-1727.23159868,0.00026841,2]
[344304664,1733333451789,-500.0,0.00026849,7]
[344304665,1733333451799,-500.0,0.00026849,7]
[344304666,1733333451808,-500.0,0.00026849,7]
[344304667,1733333451818,-721.83,0.00026849,7]
[344304668,1733333451828,-573.45,0.00026849,7]
[344304669,1733333451838,-522.96,0.00026849,7]
[344304670,1733333451848,-201.80379649,0.00026849,7]
[344304671,1733333451858,-500.0,0.00026849,7]
[344304672,1733333451868,-500.0,0.00026849,7]
[344304673,1733333451878,-500.0,0.00026849,7]
[344304674,1733333451888,-500.0,0.00026849,7]
[344304675,1733333451898,-171.93255698,0.00026849,7]
[344304676,1733333451908,-500.0,0.00026849,7]
[344304677,1733333451918,-500.0,0.00026849,7]
[344304678,1733333451928,-709.08,0.00026849,7]
[344304679,1733333451939,-926.59,0.00026849,7]
[344304680,1733333451948,-500.0,0.00026849,7]
[344304681,1733333451957,-500.0,0.00026849,7]
[344304682,1733333451967,-500.0,0.00026849,7]
[344304683,1733333451977,-504.13,0.00026849,7]
[344304684,1733333451988,-500.0,0.00026849,7]
[344304685,1733333451997,-723.18,0.00026849,7]
[344304686,1733333452006,-500.0,0.00026849,7]
[344304687,1733333452016,-500.02,0.00026849,7]
[344304688,1733333452026,-500.0,0.00026849,7]
[344304689,1733333452036,-626.31,0.00026849,7]
[344304690,1733333452046,-500.0,0.00026849,7]
[344304691,1733333452056,-1467.58,0.00026849,7]
[344304692,1733333452066,-662.89,0.00026849,7]
[344304693,1733333452076,-500.0,0.00026849,7]
[344304694,1733333452086,-500.0,0.00026849,7]
[344304695,1733333452096,-500.0,0.00026849,7]
[344304696,1733333452107,-522.12664275,0.00026849,7]
[344304697,1733333452117,-500.0,0.00026849,7]
[344304698,1733333452130,-677.12,0.00026849,7]
[344304699,1733333452140,-524.85,0.00026849,7]
[344304700,1733333452150,-500.0,0.00026849,7]
[344304701,1733333452160,-629.48,0.00026849,7]
[344304702,1733333452169,-500.0,0.00026849,7]
[344304703,1733333452179,-500.0,0.00026849,7]
[344304704,1733333452189,-500.0,0.00026849,7]
[344304705,1733333452198,-1116.42,0.00026849,7]
[344304706,1733333452209,-500.0,0.00026849,7]
[344304707,1733333452220,-500.0,0.00026849,7]
[344304708,1733333452230,-563.92,0.00026849,7]
[344304709,1733333452243,-522.96,0.00026849,7]
[344304710,1733333452253,-500.0,0.00026849,7]
[344304711,1733333452263,-515.01,0.00026849,7]
[344304712,1733333452273,-247.15383549,0.00026849,7]
[344304713,1733333452283,-504.71,0.00026849,7]
[344304714,1733333452292,-7087.95,0.00026849,7]
[344304715,1733333452302,-500.0,0.00026849,7]
[344304716,1733333452312,-2035.02,0.00026849,7]
[344304717,1733333452322,-3116.65,0.00026849,7]
[344304718,1733333452334,-500.0,0.00026849,7]
[344304719,1733333452344,-564.96,0.00026849,7]
[344304720,1733333452355,-500.0,0.00026849,7]
[344304721,1733333452365,-500.0,0.00026849,7]
[344304722,1733333452375,-500.0,0.00026849,7]
[344304723,1733333452386,-1293.31,0.00026849,7]
[344304724,1733333452396,-1459.39,0.00026849,7]
[344304725,1733333452406,-657.86,0.00026849,7]
[344304727,1733333452417,-599.05,0.00026849,7]
[344304729,1733333452426,-500.0,0.00026849,7]
[344304731,1733333452436,-689.6,0.00026849,7]
[344304732,1733333452446,-903.51,0.00026849,7]
[344304734,1733333452456,-500.0,0.00026849,7]
[344304736,1733333452466,-1056.39,0.00026849,7]
[344304738,1733333452476,-557.51,0.00026849,7]
[344304740,1733333452489,-500.0,0.00026849,7]
[344304742,1733333452499,-2094.84,0.00026849,7]
[344304744,1733333452509,-679.03,0.00026849,7]
[344304746,1733333452520,-500.0,0.00026849,7]
[344304748,1733333452530,-500.0,0.00026849,7]
[344304750,1733333452540,-1824.02,0.00026849,7]
[344304751,1733333452550,-655.64,0.00026849,7]
[344304753,1733333452560,-500.0,0.00026849,7]
[344304754,1733333452569,-500.0,0.00026849,7]
[344304756,1733333452579,-606.39,0.00026849,7]
[344304758,1733333452589,-535.37,0.00026849,7]
[344304760,1733333452600,-500.0,0.00026849,7]
[344304762,1733333452611,-703.44,0.00026849,7]
[344304763,1733333452620,-500.0,0.00026849,7]
[344304765,1733333452630,-571.15,0.00026849,7]
[344304766,1733333452640,-770.81,0.00026849,7]
[344304767,1733333452649,-771.52,0.00026849,7]
[344304768,1733333452659,-500.0,0.00026849,7]
[344304769,1733333452668,-500.0,0.00026849,7]
[344304770,1733333452679,-500.0,0.00026849,7]
[344304771,1733333452689,-500.0,0.00026849,7]
[344304772,1733333452699,-500.0,0.00026849,7]
[344304773,1733333452708,-729.72,0.00026849,7]
[344304774,1733333452718,-7776.5,0.00026849,7]
[344304775,1733333452727,-284.753225,0.00026921,2]
[344304776,1733333452738,-6305.9339122,0.00026991,2]
[344304777,1733333452748,-161.0,0.00027,2]
[344304778,1733333452757,-155669.67008012,0.00027,2]
[344304779,1733333452926,-429.15646472,0.00027,2]
[344304780,1733333452939,-83940.83003392,0.00027,2]
[344304781,1733333452950,-2634.55105763,0.00027,2]
[344304782,1733333453007,-1465.8959102,0.00027,2]
[344304783,1733333453019,-43479.30151782,0.00027,2]
[344304784,1733333453031,-4498.5999984,0.00027,2]
[344304785,1733333453044,-6221.37449659,0.00027,2]
[344304786,1733333453057,-3387.72989309,0.00027,2]
[344304787,1733333453170,-2110.76506768,0.00027,2]
[344304788,1733333453195,-38671.78654982,0.00027,2]
[344304789,1733333453207,-6748.1999982,0.00027,2]
[344304799,1733333694737,264.455067,0.00013973,2]
[344304802,1733334409138,-300.0,0.00019999,2]
[344304803,1733334409160,-300.0,0.00019999,2]
[344304804,1733334409181,-658.0,0.0002,3]
[344304805,1733334409202,-657.0,0.0002,3]
[344304806,1733334409223,-657.0,0.0002,3]
[344304807,1733334409250,-657.0,0.0002,3]
[344304808,1733334409274,-491.85741182,0.0002,2]
[344304810,1733334423486,270.97402,0.00013973,2]
[344304847,1733334632154,-174.05426474,0.00020347,2]
[344304850,1733334632164,-270.97402,0.00020447,2]
[344304853,1733334632176,-300.0,0.00022482,2]
[344304856,1733334632186,-300.0,0.00022482,2]
[344304859,1733334632195,-17345.40338378,0.00022483,2]
[344304862,1733334632207,-308.50786642,0.00022483,2]
[344305046,1733334637951,-2749.62000012,0.00022483,2]
[344305047,1733334637967,-4496.46874968,0.00022483,2]
[344305048,1733334637979,-420.0,0.00024419,2]
[344305049,1733334637995,-182.342812,0.0002464,2]
[344305050,1733334638007,-200.0,0.00024653,2]
[344305051,1733334638019,-939.59480141,0.00024653,2]
[344305052,1733334638031,-500.0,0.00024653,2]
[344305053,1733334638042,-939.59480141,0.00024653,2]
[344305054,1733334638052,-500.0,0.00024653,2]
[344305055,1733334638064,-939.59480141,0.00024653,2]
[344305057,1733334638076,-500.0,0.00024653,2]
[344305059,1733334638088,-939.59480141,0.00024653,2]
[344305060,1733334638099,-500.0,0.00024653,2]
[344305061,1733334638109,-939.59480141,0.00024653,2]
[344305062,1733334638120,-939.59480141,0.00024653,2]
[344305063,1733334638131,-500.0,0.00024653,2]
[344305064,1733334638142,-939.59480141,0.00024653,2]
[344305065,1733334638154,-220.2090082,0.00024653,2]
[344305066,1733334638164,-939.59480141,0.00024653,2]
[344305067,1733334638174,-939.59480141,0.00024653,2]
[344305068,1733334638184,-939.59480141,0.00024653,2]
[344305069,1733334638195,-939.59480141,0.00024653,2]
[344305070,1733334638206,-939.59480141,0.00024653,2]
[344305071,1733334638216,-939.59480141,0.00024653,2]
[344305072,1733334638229,-939.59480141,0.00024653,2]
[344305073,1733334638240,-939.59480141,0.00024653,2]
[344305074,1733334638251,-939.59480141,0.00024653,2]
[344305075,1733334638261,-939.59480141,0.00024653,2]
[344305076,1733334638272,-939.59480141,0.00024653,2]
[344305077,1733334638283,-939.59480141,0.00024653,2]
[344305078,1733334638294,-939.59480141,0.00024653,2]
[344305079,1733334638305,-939.59480141,0.00024653,2]
[344305080,1733334638315,-939.59480141,0.00024653,2]
[344305081,1733334638326,-939.59480141,0.00024653,2]
[344305082,1733334638336,-939.59480141,0.00024653,2]
[344305083,1733334638347,-939.59480141,0.00024653,2]
[344305084,1733334638358,-939.59480141,0.00024653,2]
[344305085,1733334638370,-939.59480141,0.00024653,2]
[344305086,1733334638379,-939.59480141,0.00024653,2]
[344305087,1733334638390,-939.59480141,0.00024653,2]
[344305088,1733334638401,-939.59480141,0.00024653,2]
[344305089,1733334638411,-939.59480141,0.00024653,2]
[344305090,1733334638422,-939.59480141,0.00024653,2]
[344305091,1733334638433,-939.59480141,0.00024653,2]
[344305092,1733334638444,-939.59480141,0.00024653,2]
[344305093,1733334638456,-939.59480141,0.00024653,2]
[344305094,1733334638467,-939.59480141,0.00024653,2]
[344305095,1733334638478,-939.59480141,0.00024653,2]
[344305096,1733334638488,-939.59480141,0.00024653,2]
[344305097,1733334638498,-939.59480141,0.00024653,2]
[344305098,1733334638509,-500.0,0.00024653,2]
[344305099,1733334638520,-939.59480141,0.00024653,2]
[344305100,1733334638531,-939.59480141,0.00024653,2]
[344305101,1733334638542,-939.59480141,0.00024653,2]
[344305102,1733334638553,-939.59480141,0.00024653,2]
[344305103,1733334638564,-939.59480141,0.00024653,2]
[344305104,1733334638575,-939.59480141,0.00024653,2]
[344305105,1733334638586,-939.59480141,0.00024653,2]
[344305106,1733334638597,-939.59480141,0.00024653,2]
[344305107,1733334638608,-939.59480141,0.00024653,2]
[344305108,1733334638619,-316.81116036,0.00024656,2]
[344305109,1733334638630,-500.0,0.00024657,7]
[344305110,1733334638641,-500.0,0.00024657,7]
[344305111,1733334638652,-500.0,0.00024657,7]
[344305112,1733334638664,-500.0,0.00024657,7]
[344305113,1733334638675,-500.0,0.00024657,7]
[344305114,1733334638687,-500.0,0.00024657,7]
[344305115,1733334638700,-500.0,0.00024657,7]
[344305116,1733334638711,-500.0,0.00024657,7]
[344305117,1733334638723,-500.0,0.00024657,7]
[344305118,1733334638734,-500.0,0.00024657,7]
[344305119,1733334638745,-500.0,0.00024657,7]
[344305120,1733334638755,-500.0,0.00024657,7]
[344305121,1733334638767,-500.0,0.00024657,7]
[344305122,1733334638779,-500.0,0.00024657,7]
[344305123,1733334638790,-500.0,0.00024657,7]
[344305124,1733334638802,-464.83242195,0.00024657,7]
[344305125,1733334638813,-500.0,0.00024657,7]